[Event "4NCL Div 1 2018-19"]
[Site "Daventry"]
[Date "2019.01.12"]
[Round "3"]
[White "Willow, Jonah B"]
[Black "Ansell, Simon T"]
[Result "0-1"]
[ECO "B32"]
[WhiteElo "2224"]
[BlackElo "2336"]
[Annotator "NA"]
[PlyCount "132"]
[EventDate "2019.01.12"]
[EventCountry "GBR"]
[SourceTitle "playchess.com"]
[Source "ChessBase"]
[SourceQuality "1"]
[TimeControl "40"]

1. e4 {[%emt 0:00:00]} c5 {[%emt 0:00:00]} 2. Nf3 {[%emt 0:00:00]} Nc6 {[%emt 0:00:00]} 3. d4 {[%emt 0:00:00]} cxd4 {[%emt 0:00:00]} 4. Nxd4 {[%emt 0:00:00]} e5 {[%emt 0:00:00]} 5. Nb5 {[%emt 0:00:00]} d6 {[%emt 0:00:00]} 6. N1c3 {[%emt 0:00:00]} a6 {[%emt 0:00:00]} 7. Na3 {[%emt 0:00:00]} Be6 {[%emt 0:00:00]} 8. Nc4 {[%emt 0:00:00]} b5 {[%emt 0:00:00]} 9. Ne3 {[%emt 0:00:00]} Nf6 {[%emt 0:00:00]} 10. Bd3 {[%emt 0:00:00]} g6 {[%emt 0:00:00]} 11. O-O {[%emt 0:00:00]} Bh6 {[%emt 0:00:00]} 12. Ncd5 {[%emt 0:00:00]} Bxd5 {[%emt 0:00:00]} 13. Nxd5 {[%emt 0:00:00]} Bxc1 {[%emt 0:00:00]} 14. Qxc1 {[%emt 0:00:00]} O-O {[%emt 0:00:00]} 15. a4 {[%emt 0:00:00]} Nxd5 {[%emt 0:00:00]} 16. exd5 {[%emt 0:00:00]} Nb4 {[%emt 0:00:00]} 17. Qd2 {[%emt 0:00:00]} Nxd3 {[%emt 0:00:00]} 18. Qxd3 {[%emt 0:00:00]} Qb6 {[%emt 0:00:00]} 19. axb5 {[%emt 0:00:00]} axb5 {[%emt 0:00:00]} 20. Qc3 {[%emt 0:00:00]} Rac8 {[%emt 0:00:00]} 21. Qb3 {[%emt 0:00:00]} Rc4 {[%emt 0:00:00]} 22. c3 {[%emt 0:00:00]} f5 {[%emt 0:00:00]} 23. Qa3 {[%emt 0:00:00]} Ra4 {[%emt 0:00:00]} 24. Qb3 {[%emt 0:00:00]} Rfa8 {[%emt 0:00:00]} 25. Rxa4 {[%emt 0:00:00]} Rxa4 {[%emt 0:00:00]} 26. Qd1 {[%emt 0:00:00]} Qc5 {[%emt 0:00:00]} 27. Qd2 {[%emt 0:00:00]} Kg7 {[%emt 0:00:00]} 28. Qg5 {[%emt 0:00:00]} Qc7 {[%emt 0:00:00]} 29. Rd1 {[%emt 0:00:00]} h6 {[%emt 0:00:00]} 30. Qe3 {[%emt 0:00:00]} h5 {[%emt 0:00:00]} 31. h3 {[%emt 0:00:00]} f4 {[%emt 0:00:00]} 32. Qe2 {[%emt 0:00:00]} Qc4 {[%emt 0:00:00]} 33. Rd2 {[%emt 0:00:00]} Ra1+ {[%emt 0:00:00]} 34. Kh2 {[%emt 0:00:00]} Qxe2 {[%emt 0:00:00]} 35. Rxe2 {[%emt 0:00:00]} Rd1 {[%emt 0:00:00]} 36. b4 {[%emt 0:00:00]} Rxd5 {[%emt 0:00:00]} 37. Ra2 {[%emt 0:00:00]} e4 {[%emt 0:00:00]} 38. Ra5 {[%emt 0:00:00]} Rd2 {[%emt 0:00:00]} 39. Rxb5 {[%emt 0:00:04]} Rxf2 {[%emt 0:00:00]} 40. Kg1 {[%emt 0:00:02]} Rd2 {[%emt 0:00:00]} 41. Kf1 {[%emt 0:00:00]} e3 {[%emt 0:00:00]} 42. c4 {[%emt 0:00:00]} Rf2+ {[%emt 0:00:00]} 43. Kg1 {[%emt 0:00:00]} Rc2 {[%emt 0:00:00]} 44. Kf1 {[%emt 0:00:00]} Rc1+ {[%emt 0:00:00]} 45. Ke2 {[%emt 0:00:00]} Rg1 {[%emt 0:00:00]} 46. Rg5 {[%emt 0:00:00]} Kf6 {[%emt 0:00:00]} 47. h4 {[%emt 0:00:00]} Rb1 {[%emt 0:00:00]} 48. b5 {[%emt 0:00:00]} Rb2+ {[%emt 0:00:00]} 49. Ke1 {[%emt 0:00:00]} Rb4 {[%emt 0:00:00]} 50. Rd5 {[%emt 0:00:00]} Rxc4 {[%emt 0:00:00]} 51. Rxd6+ {[%emt 0:00:00]} Kf5 {[%emt 0:00:00]} 52. Rd5+ {[%emt 0:00:00]} Ke4 {[%emt 0:00:00]} 53. Rd6 {[%emt 0:00:00]} Rc1+ {[%emt 0:00:00]} 54. Ke2 {[%emt 0:00:00]} Rc2+ {[%emt 0:00:00]} 55. Kf1 {[%emt 0:00:00]} Rf2+ {[%emt 0:00:00]} 56. Kg1 {[%emt 0:00:00]} Rd2 {[%emt 0:00:00]} 57. Re6+ {[%emt 0:00:00]} Kf5 {[%emt 0:00:00]} 58. Re7 {[%emt 0:00:00]} Rb2 {[%emt 0:00:00]} 59. Kf1 {[%emt 0:00:00]} Rxb5 {[%emt 0:00:00]} 60. Rf7+ {[%emt 0:00:00]} Ke5 {[%emt 0:00:00]} 61. Rg7 {[%emt 0:00:00]} Kf6 {[%emt 0:00:00]} 62. Rg8 {[%emt 0:00:00]} Rb1+ {[%emt 0:00:00]} 63. Ke2 {[%emt 0:00:00]} Rg1 {[%emt 0:00:00]} 64. Rf8+ {[%emt 0:00:00]} Ke5 {[%emt 0:00:00]} 65. Re8+ {[%emt 0:00:00]} Kf5 {[%emt 0:00:00]} 66. Rf8+ {[%emt 0:00:00]} Kg4 {[%emt 0:00:00]} 0-1

[Event "4NCL Div 1 2018-19"]
[Site "Daventry"]
[Date "2019.01.12"]
[Round "3"]
[White "Blackburn, Jonathan L B"]
[Black "Wells, Peter K"]
[Result "1/2-1/2"]
[ECO "E12"]
[WhiteElo "2208"]
[BlackElo "2405"]
[Annotator "NA"]
[PlyCount "67"]
[EventDate "2019.01.12"]
[EventCountry "GBR"]
[SourceTitle "playchess.com"]
[Source "ChessBase"]
[SourceQuality "1"]
[TimeControl "40"]

1. d4 {[%emt 0:00:00]} Nf6 {[%emt 0:00:00]} 2. c4 {[%emt 0:00:00]} e6 {[%emt 0:00:00]} 3. Nc3 {[%emt 0:00:00]} Bb4 {[%emt 0:00:00]} 4. Nf3 {[%emt 0:00:00]} b6 {[%emt 0:00:00]} 5. Qb3 {[%emt 0:00:00]} c5 {[%emt 0:00:00]} 6. Bg5 {[%emt 0:00:00]} Bb7 {[%emt 0:00:00]} 7. e3 {[%emt 0:00:00]} O-O {[%emt 0:00:00]} 8. Rd1 {[%emt 0:00:00]} cxd4 {[%emt 0:00:00]} 9. exd4 {[%emt 0:00:00]} Bxc3+ {[%emt 0:08:49]} 10. bxc3 {[%emt 0:00:00]} d6 {[%emt 0:00:00]} 11. Be2 {[%emt 0:00:00]} Nbd7 {[%emt 0:00:00]} 12. O-O {[%emt 0:00:00]} Qc7 {[%emt 0:00:00]} 13. h3 {[%emt 0:00:00]} Rac8 {[%emt 0:00:00]} 14. Qa3 {[%emt 0:00:00]} d5 {[%emt 0:00:00]} 15. cxd5 {[%emt 0:00:00]} Bxd5 {[%emt 0:00:00]} 16. c4 {[%emt 0:00:00]} Bxc4 {[%emt 0:00:00]} 17. Bxc4 {[%emt 0:00:00]} Qxc4 {[%emt 0:00:00]} 18. Bxf6 {[%emt 0:00:00]} Nxf6 {[%emt 0:00:00]} 19. Rc1 {[%emt 0:00:00]} Qd5 {[%emt 0:00:00]} 20. Rxc8 {[%emt 0:00:00]} Rxc8 {[%emt 0:00:00]} 21. Qxa7 {[%emt 0:00:00]} Nd7 {[%emt 0:00:00]} 22. a3 {[%emt 0:00:00]} h6 {[%emt 0:00:00]} 23. Ne5 {[%emt 0:00:00]} Nxe5 {[%emt 0:00:00]} 24. dxe5 {[%emt 0:00:00]} b5 {[%emt 0:00:00]} 25. Re1 {[%emt 0:00:00]} Rc2 {[%emt 0:00:00]} 26. Qb8+ {[%emt 0:00:00]} Kh7 {[%emt 0:00:00]} 27. Qd6 {[%emt 0:00:00]} Qxd6 {[%emt 0:00:00]} 28. exd6 {[%emt 0:00:00]} Rd2 {[%emt 0:00:00]} 29. Rb1 {[%emt 0:00:00]} Rxd6 {[%emt 0:00:00]} 30. Rxb5 {[%emt 0:00:00]} Rd1+ {[%emt 0:00:00]} 31. Kh2 {[%emt 0:00:00]} Rd2 {[%emt 0:00:00]} 32. Kg1 {[%emt 0:00:00]} Rd1+ {[%emt 0:00:00]} 33. Kh2 {[%emt 0:00:00]} Rd2 {[%emt 0:00:00]} 34. Kg1 {[%emt 0:00:00]} 1/2-1/2

[Event "4NCL Div 1 2018-19"]
[Site "Daventry"]
[Date "2019.01.12"]
[Round "3"]
[White "Mihalik, Agoston"]
[Black "Weller, Jean-Luc"]
[Result "1/2-1/2"]
[ECO "C04"]
[WhiteElo "2206"]
[BlackElo "2268"]
[Annotator "NA"]
[PlyCount "93"]
[EventDate "2019.01.12"]
[EventCountry "GBR"]
[SourceTitle "playchess.com"]
[Source "ChessBase"]
[SourceQuality "1"]
[TimeControl "40"]

1. e4 {[%emt 0:00:00]} e6 {[%emt 0:00:00]} 2. d4 {[%emt 0:00:00]} d5 {[%emt 0:00:00]} 3. Nd2 {[%emt 0:00:00]} Nc6 {[%emt 0:00:00]} 4. Ngf3 {[%emt 0:00:00]} Nf6 {[%emt 0:00:00]} 5. e5 {[%emt 0:00:00]} Nd7 {[%emt 0:00:00]} 6. c4 {[%emt 0:00:00]} Be7 {[%emt 0:00:00]} 7. Bd3 {[%emt 0:00:00]} f6 {[%emt 0:00:00]} 8. O-O {[%emt 0:00:00]} O-O {[%emt 0:00:00]} 9. Re1 {[%emt 0:00:00]} Nb6 {[%emt 0:00:00]} 10. a3 {[%emt 0:00:00]} dxc4 {[%emt 0:00:00]} 11. Nxc4 {[%emt 0:00:00]} f5 {[%emt 0:00:00]} 12. Nxb6 {[%emt 0:00:00]} axb6 {[%emt 0:00:00]} 13. Be3 {[%emt 0:00:00]} g5 {[%emt 0:00:00]} 14. h3 {[%emt 0:00:00]} f4 {[%emt 0:00:00]} 15. Bd2 {[%emt 0:00:00]} Nxd4 {[%emt 0:00:00]} 16. Nxd4 {[%emt 0:00:00]} Qxd4 {[%emt 0:00:00]} 17. Bb4 {[%emt 0:00:00]} Qd7 {[%emt 0:00:00]} 18. Bxh7+ {[%emt 0:00:00]} Kxh7 {[%emt 0:00:00]} 19. Qxd7 {[%emt 0:00:00]} Bxd7 {[%emt 0:00:00]} 20. Bxe7 {[%emt 0:00:00]} Rg8 {[%emt 0:00:00]} 21. Rac1 {[%emt 0:00:00]} Bc6 {[%emt 0:00:00]} 22. f3 {[%emt 0:00:00]} Kg6 {[%emt 0:00:00]} 23. Kf2 {[%emt 0:00:00]} Rg7 {[%emt 0:00:00]} 24. Bf6 {[%emt 0:00:00]} Rh7 {[%emt 0:00:00]} 25. Rc4 {[%emt 0:00:00]} Bd5 {[%emt 0:00:00]} 26. Rcc1 {[%emt 0:00:00]} c5 {[%emt 0:00:00]} 27. Red1 {[%emt 0:00:00]} Rc8 {[%emt 0:00:00]} 28. Rc3 {[%emt 0:00:00]} b5 {[%emt 0:00:00]} 29. Rdc1 {[%emt 0:00:00]} b6 {[%emt 0:00:00]} 30. Rd1 {[%emt 0:00:00]} Ra8 {[%emt 0:00:00]} 31. Rh1 {[%emt 0:00:00]} c4 {[%emt 0:00:00]} 32. Rb1 {[%emt 0:00:00]} Ra4 {[%emt 0:00:00]} 33. Ke2 {[%emt 0:00:00]} Rha7 {[%emt 0:00:00]} 34. Kd2 {[%emt 0:00:01]} b4 {[%emt 0:00:00]} 35. axb4 {[%emt 0:00:00]} Rxb4 {[%emt 0:00:00]} 36. Kc2 {[%emt 0:00:00]} Rba4 {[%emt 0:00:00]} 37. Bd8 {[%emt 0:00:04]} b5 {[%emt 0:00:00]} 38. Ra3 {[%emt 0:00:00]} Rxa3 {[%emt 0:00:08]} 39. bxa3 {[%emt 0:00:00]} Bc6 {[%emt 0:00:00]} 40. Kb2 {[%emt 0:00:01]} Rd7 {[%emt 0:00:00]} 41. Ba5 {[%emt 0:00:00]} Rd3 {[%emt 0:00:00]} 42. Bc3 {[%emt 0:00:00]} Kf7 {[%emt 0:00:00]} 43. Kc2 {[%emt 0:00:00]} Ke8 {[%emt 0:00:00]} 44. Re1 {[%emt 0:00:00]} Kd8 {[%emt 0:00:00]} 45. Re2 {[%emt 0:00:00]} Be8 {[%emt 0:00:00]} 46. Rd2 {[%emt 0:00:00]} Bg6 {[%emt 0:00:00]} 47. Kd1 {[%emt 0:00:00]} 1/2-1/2

[Event "4NCL Div 1 2018-19"]
[Site "Daventry"]
[Date "2019.01.12"]
[Round "3"]
[White "Makkar, Rajat"]
[Black "Stoeri, Laura"]
[Result "0-1"]
[ECO "E11"]
[WhiteElo "2173"]
[BlackElo "2113"]
[Annotator "NA"]
[PlyCount "90"]
[EventDate "2019.01.12"]
[EventCountry "GBR"]
[SourceTitle "playchess.com"]
[Source "ChessBase"]
[SourceQuality "1"]
[TimeControl "40"]

1. d4 {[%emt 0:00:00]} Nf6 {[%emt 0:00:00]} 2. c4 {[%emt 0:00:00]} e6 {[%emt 0:00:00]} 3. g3 {[%emt 0:00:00]} Bb4+ {[%emt 0:00:00]} 4. Bd2 {[%emt 0:00:00]} Qe7 {[%emt 0:00:00]} 5. Bg2 {[%emt 0:00:00]} Nc6 {[%emt 0:00:00]} 6. Nf3 {[%emt 0:00:00]} Bxd2+ {[%emt 0:00:00]} 7. Qxd2 {[%emt 0:00:00]} Ne4 {[%emt 0:00:00]} 8. Qc2 {[%emt 0:00:00]} Qb4+ {[%emt 0:00:00]} 9. Nc3 {[%emt 0:00:00]} f5 {[%emt 0:00:00]} 10. Qb3 {[%emt 0:00:00]} b6 {[%emt 0:00:00]} 11. O-O {[%emt 0:00:00]} Ba6 {[%emt 0:00:00]} 12. Ne5 {[%emt 0:00:00]} Qd6 {[%emt 0:00:00]} 13. Nxe4 {[%emt 0:00:00]} fxe4 {[%emt 0:00:00]} 14. Nxc6 {[%emt 0:00:00]} Qxc6 {[%emt 0:00:00]} 15. Rac1 {[%emt 0:00:00]} Bb7 {[%emt 0:00:00]} 16. Rfd1 {[%emt 0:00:00]} O-O {[%emt 0:00:00]} 17. d5 {[%emt 0:00:00]} exd5 {[%emt 0:00:00]} 18. cxd5 {[%emt 0:00:00]} Qf6 {[%emt 0:00:00]} 19. f4 exf3 {[%emt 0:00:00]} 20. Bxf3 {[%emt 0:00:00]} Qd6 {[%emt 0:00:00]} 21. Rxc7 {[%emt 0:00:00]} Ba6 {[%emt 0:00:00]} 22. Rc6 {[%emt 0:00:00]} Qe5 {[%emt 0:00:00]} 23. Rc2 {[%emt 0:00:00]} d6 {[%emt 0:00:00]} 24. Qc3 {[%emt 0:00:00]} Qg5 {[%emt 0:00:00]} 25. Qd2 {[%emt 0:00:00]} Qg6 {[%emt 0:00:00]} 26. b4 {[%emt 0:00:00]} Bb5 {[%emt 0:00:00]} 27. Rdc1 {[%emt 0:00:00]} Rae8 {[%emt 0:00:00]} 28. a4 {[%emt 0:00:00]} Bxa4 {[%emt 0:00:00]} 29. Ra2 {[%emt 0:00:00]} b5 {[%emt 0:00:00]} 30. Ra3 Rc8 {[%emt 0:00:00]} 31. Rc6 {[%emt 0:00:00]} Qf6 {[%emt 0:00:08]} 32. Rac3 {[%emt 0:00:00]} Rce8 {[%emt 0:00:00]} 33. Ra6 {[%emt 0:00:00]} Re7 {[%emt 0:00:00]} 34. Rcc6 {[%emt 0:00:00]} Rd8 {[%emt 0:00:00]} 35. Qf4 {[%emt 0:00:00]} Qa1+ {[%emt 0:00:00]} 36. Kg2 {[%emt 0:00:00]} Rf8 {[%emt 0:00:00]} 37. Qxd6 {[%emt 0:00:00]} Re3 {[%emt 0:00:00]} 38. Qc5 {[%emt 0:00:00]} Qa3 {[%emt 0:00:00]} 39. d6 {[%emt 0:00:00]} Rexf3 {[%emt 0:00:00]} 40. Qd5+ {[%emt 0:00:00]} R3f7 {[%emt 0:00:00]} 41. d7 {[%emt 0:00:00]} Qa1 {[%emt 0:00:00]} 42. Kh3 {[%emt 0:00:00]} Qf1+ {[%emt 0:00:00]} 43. Kh4 {[%emt 0:00:00]} Qxe2 {[%emt 0:00:00]} 44. d8=Q {[%emt 0:00:00]} Qxh2+ {[%emt 0:00:00]} 45. Kg4 {[%emt 0:00:00]} Bd1+ {[%emt 0:00:00]} 0-1

[Event "4NCL Div 1 2018-19"]
[Site "Daventry"]
[Date "2019.01.12"]
[Round "3"]
[White "Quinn, John M"]
[Black "Longson, Sarah N"]
[Result "1/2-1/2"]
[ECO "D24"]
[WhiteElo "2163"]
[BlackElo "2086"]
[Annotator "NA"]
[PlyCount "41"]
[EventDate "2019.01.12"]
[EventCountry "GBR"]
[SourceTitle "playchess.com"]
[Source "ChessBase"]
[SourceQuality "1"]
[TimeControl "40"]

1. d4 {[%emt 0:00:00]} d5 {[%emt 0:00:00]} 2. c4 {[%emt 0:00:00]} dxc4 {[%emt 0:00:00]} 3. Nf3 {[%emt 0:00:00]} Nf6 {[%emt 0:00:00]} 4. Nc3 {[%emt 0:00:00]} a6 {[%emt 0:00:00]} 5. a4 {[%emt 0:00:00]} e6 {[%emt 0:00:00]} 6. Bg5 {[%emt 0:00:00]} c5 {[%emt 0:00:00]} 7. dxc5 {[%emt 0:00:00]} Qa5 {[%emt 0:00:00]} 8. Bxf6 {[%emt 0:00:00]} gxf6 {[%emt 0:00:00]} 9. Qd4 {[%emt 0:00:00]} Nd7 {[%emt 0:00:00]} 10. Qxc4 {[%emt 0:00:00]} Bxc5 {[%emt 0:00:00]} 11. e3 {[%emt 0:00:00]} Nb6 {[%emt 0:00:00]} 12. Qb3 {[%emt 0:00:00]} e5 {[%emt 0:00:00]} 13. Bd3 {[%emt 0:00:00]} Be6 {[%emt 0:00:00]} 14. Qc2 {[%emt 0:00:00]} Nd5 {[%emt 0:00:00]} 15. O-O {[%emt 0:00:00]} Nb4 {[%emt 0:00:00]} 16. Qe2 {[%emt 0:00:00]} Nxd3 {[%emt 0:00:00]} 17. Qxd3 {[%emt 0:00:00]} Rd8 {[%emt 0:00:00]} 18. Qe4 {[%emt 0:00:00]} Qb4 {[%emt 0:00:00]} 19. Nxe5 {[%emt 0:00:00]} fxe5 {[%emt 0:00:00]} 20. Qxe5 {[%emt 0:00:00]} O-O {[%emt 0:00:00]} 21. Qg5+ {[%emt 0:00:00]} 1/2-1/2

[Event "4NCL Div 1 2018-19"]
[Site "Daventry"]
[Date "2019.01.12"]
[Round "3"]
[White "Stepanyan, Henrik"]
[Black "Ledger, Stephen C"]
[Result "1/2-1/2"]
[ECO "A43"]
[WhiteElo "2158"]
[BlackElo "2095"]
[Annotator "NA"]
[PlyCount "76"]
[EventDate "2019.01.12"]
[EventCountry "GBR"]
[SourceTitle "playchess.com"]
[Source "ChessBase"]
[SourceQuality "1"]
[TimeControl "40"]

1. d4 {[%emt 0:00:00]} Nf6 {[%emt 0:00:00]} 2. Nf3 {[%emt 0:00:00]} c5 {[%emt 0:00:00]} 3. d5 {[%emt 0:00:00]} b5 {[%emt 0:00:00]} 4. Bg5 {[%emt 0:00:00]} d6 {[%emt 0:00:00]} 5. Bxf6 {[%emt 0:00:00]} exf6 {[%emt 0:00:00]} 6. e4 {[%emt 0:00:00]} a6 {[%emt 0:00:00]} 7. a4 {[%emt 0:00:00]} b4 {[%emt 0:00:00]} 8. Bd3 {[%emt 0:00:00]} g6 {[%emt 0:00:00]} 9. a5 {[%emt 0:00:00]} Bg7 {[%emt 0:00:00]} 10. c3 {[%emt 0:00:00]} bxc3 {[%emt 0:00:00]} 11. bxc3 {[%emt 0:00:00]} O-O {[%emt 0:00:00]} 12. O-O {[%emt 0:00:00]} Bg4 {[%emt 0:00:00]} 13. h3 {[%emt 0:00:00]} Bxf3 {[%emt 0:00:00]} 14. Qxf3 {[%emt 0:00:00]} Re8 {[%emt 0:00:00]} 15. Nd2 {[%emt 0:00:00]} Nd7 {[%emt 0:00:00]} 16. Nc4 {[%emt 0:00:00]} Ne5 {[%emt 0:00:00]} 17. Nxe5 {[%emt 0:00:00]} Rxe5 {[%emt 0:00:00]} 18. Rfb1 {[%emt 0:00:00]} Re7 {[%emt 0:00:00]} 19. Rb6 {[%emt 0:00:00]} f5 {[%emt 0:00:00]} 20. exf5 {[%emt 0:00:00]} Bxc3 {[%emt 0:00:00]} 21. Rab1 {[%emt 0:00:00]} Bxa5 {[%emt 0:00:00]} 22. Rc6 {[%emt 0:00:00]} Rc7 {[%emt 0:00:00]} 23. Qf4 {[%emt 0:00:00]} Rxc6 {[%emt 0:00:00]} 24. dxc6 {[%emt 0:00:00]} Bc7 {[%emt 0:00:00]} 25. Rb7 {[%emt 0:00:00]} Rb8 {[%emt 0:00:00]} 26. fxg6 {[%emt 0:00:00]} hxg6 {[%emt 0:00:00]} 27. Bc4 {[%emt 0:00:00]} Qe7 {[%emt 0:00:00]} 28. Qg4 {[%emt 0:00:00]} d5 {[%emt 0:00:00]} 29. Rxb8+ {[%emt 0:00:00]} Bxb8 {[%emt 0:00:00]} 30. Qc8+ {[%emt 0:00:00]} Qf8 {[%emt 0:00:00]} 31. Qxf8+ {[%emt 0:00:00]} Kxf8 {[%emt 0:00:00]} 32. Bxd5 {[%emt 0:00:00]} Ke7 {[%emt 0:00:00]} 33. Kf1 {[%emt 0:00:00]} g5 {[%emt 0:00:00]} 34. g3 {[%emt 0:00:00]} f6 {[%emt 0:00:00]} 35. h4 {[%emt 0:00:00]} gxh4 {[%emt 0:00:00]} 36. gxh4 {[%emt 0:00:00]} Bf4 {[%emt 0:00:00]} 37. Ke2 {[%emt 0:00:00]} Kd6 {[%emt 0:00:00]} 38. Bc4 {[%emt 0:00:00]} Kxc6 {[%emt 0:00:00]} 1/2-1/2

[Event "4NCL Div 1 2018-19"]
[Site "Daventry"]
[Date "2019.01.12"]
[Round "3"]
[White "Oswald, Graeme E"]
[Black "Jackson, James P"]
[Result "1/2-1/2"]
[ECO "A00"]
[WhiteElo "2143"]
[BlackElo "2377"]
[Annotator "NA"]
[PlyCount "165"]
[EventDate "2019.01.12"]
[EventCountry "GBR"]
[SourceTitle "playchess.com"]
[Source "ChessBase"]
[SourceQuality "1"]
[TimeControl "40"]

1. g3 {[%emt 0:00:00]} e5 {[%emt 0:00:00]} 2. Bg2 {[%emt 0:00:00]} d5 {[%emt 0:00:00]} 3. c4 {[%emt 0:00:00]} dxc4 {[%emt 0:00:00]} 4. Qa4+ {[%emt 0:00:00]} c6 {[%emt 0:00:00]} 5. Qxc4 {[%emt 0:00:00]} Be6 {[%emt 0:00:00]} 6. Qc2 {[%emt 0:00:00]} Ne7 {[%emt 0:00:00]} 7. Nf3 {[%emt 0:00:00]} f6 {[%emt 0:00:00]} 8. O-O {[%emt 0:00:00]} Nf5 {[%emt 0:00:00]} 9. d3 {[%emt 0:00:00]} Na6 {[%emt 0:00:00]} 10. a3 {[%emt 0:00:00]} Nc5 {[%emt 0:00:00]} 11. Nbd2 {[%emt 0:00:00]} a5 {[%emt 0:00:00]} 12. b3 {[%emt 0:00:00]} Be7 {[%emt 0:00:00]} 13. Rb1 {[%emt 0:00:00]} O-O {[%emt 0:00:00]} 14. Bb2 {[%emt 0:00:00]} Qe8 {[%emt 0:00:00]} 15. e4 {[%emt 0:00:00]} Nh6 {[%emt 0:00:00]} 16. d4 {[%emt 0:00:00]} exd4 {[%emt 0:00:00]} 17. Nxd4 {[%emt 0:00:00]} Bd7 {[%emt 0:00:00]} 18. Nc4 {[%emt 0:00:00]} Qh5 {[%emt 0:00:00]} 19. Nb6 {[%emt 0:00:00]} Rad8 {[%emt 0:00:00]} 20. Nxd7 {[%emt 0:00:00]} Rxd7 {[%emt 0:00:00]} 21. h3 {[%emt 0:00:00]} Rfd8 {[%emt 0:00:00]} 22. Rbd1 {[%emt 0:00:00]} Na6 {[%emt 0:00:00]} 23. Nf3 {[%emt 0:00:00]} Qc5 {[%emt 0:00:00]} 24. Qe2 {[%emt 0:00:00]} Rxd1 {[%emt 0:00:00]} 25. Rxd1 {[%emt 0:00:00]} Rxd1+ {[%emt 0:00:00]} 26. Qxd1 {[%emt 0:00:00]} Qd6 {[%emt 0:00:00]} 27. Qe1 {[%emt 0:00:00]} Nf7 {[%emt 0:00:00]} 28. Nd4 {[%emt 0:00:00]} Qc5 {[%emt 0:00:00]} 29. Kh2 {[%emt 0:00:00]} Qb6 {[%emt 0:00:00]} 30. Qd1 {[%emt 0:00:00]} Nc5 {[%emt 0:00:00]} 31. f4 {[%emt 0:00:00]} Bf8 {[%emt 0:00:00]} 32. Qc2 {[%emt 0:00:00]} Qa6 {[%emt 0:00:00]} 33. Kg1 {[%emt 0:00:00]} Qd3 {[%emt 0:00:00]} 34. b4 {[%emt 0:00:00]} axb4 {[%emt 0:00:00]} 35. axb4 {[%emt 0:00:00]} Qe3+ {[%emt 0:00:00]} 36. Kh2 {[%emt 0:00:00]} Nd3 {[%emt 0:00:00]} 37. Nf5 {[%emt 0:00:00]} Qf2 {[%emt 0:00:00]} 38. Qxf2 {[%emt 0:00:00]} Nxf2 {[%emt 0:00:00]} 39. b5 {[%emt 0:00:00]} cxb5 {[%emt 0:01:34]} 40. Bd4 {[%emt 0:03:37]} Nd3 {[%emt 0:00:00]} 41. Bf1 {[%emt 0:02:36]} Nc5 {[%emt 0:00:00]} 42. e5 {[%emt 0:00:32]} fxe5 {[%emt 0:00:00]} 43. fxe5 {[%emt 0:00:00]} g6 44. Ne3 {[%emt 0:09:19]} Ne6 {[%emt 0:00:00]} 45. Bb2 {[%emt 0:01:44]} Bc5 {[%emt 0:00:00]} 46. Nc2 {[%emt 0:00:00]} Nc7 47. Kg2 {[%emt 0:04:15]} Kf8 {[%emt 0:01:19]} 48. h4 {[%emt 0:00:00]} Nd8 {[%emt 0:00:00]} 49. Nd4 {[%emt 0:00:00]} b4 {[%emt 0:00:00]} 50. Kf3 {[%emt 0:00:00]} Nc6 {[%emt 0:00:00]} 51. Nb3 {[%emt 0:00:00]} Bg1 {[%emt 0:00:00]} 52. g4 {[%emt 0:00:00]} Ne6 {[%emt 0:00:00]} 53. Ke4 {[%emt 0:00:00]} Bf2 {[%emt 0:00:00]} 54. h5 {[%emt 0:00:00]} Ke7 {[%emt 0:00:00]} 55. Bd3 {[%emt 0:00:00]} Bg3 {[%emt 0:00:00]} 56. Bc2 {[%emt 0:00:00]} Be1 {[%emt 0:00:00]} 57. hxg6 {[%emt 0:00:00]} hxg6 {[%emt 0:00:00]} 58. Kd3 {[%emt 0:00:00]} Kf7 {[%emt 0:00:00]} 59. Kc4 {[%emt 0:00:00]} Bc3 {[%emt 0:00:00]} 60. Bxc3 {[%emt 0:00:00]} bxc3 {[%emt 0:00:00]} 61. Kxc3 {[%emt 0:00:00]} Nxe5 {[%emt 0:00:00]} 62. Na5 {[%emt 0:00:00]} b6 {[%emt 0:00:00]} 63. Nc4 {[%emt 0:00:00]} Nxc4 {[%emt 0:00:00]} 64. Kxc4 {[%emt 0:00:00]} g5 {[%emt 0:00:00]} 65. Bd1 {[%emt 0:00:00]} Kf6 {[%emt 0:00:00]} 66. Kb5 {[%emt 0:00:00]} Ke5 {[%emt 0:00:00]} 67. Kxb6 {[%emt 0:00:00]} Nf4 {[%emt 0:00:00]} 68. Kc6 {[%emt 0:00:00]} Nd5 {[%emt 0:00:00]} 69. Kd7 {[%emt 0:00:00]} Ne3 {[%emt 0:00:00]} 70. Be2 {[%emt 0:00:00]} Kf4 {[%emt 0:00:00]} 71. Ke6 {[%emt 0:00:00]} Nxg4 {[%emt 0:00:00]} 72. Kf7 {[%emt 0:00:00]} Ne5+ {[%emt 0:00:00]} 73. Kf6 {[%emt 0:00:00]} Nc6 {[%emt 0:00:00]} 74. Bd1 {[%emt 0:00:00]} Nd4 {[%emt 0:00:00]} 75. Kg6 {[%emt 0:00:00]} Nb5 {[%emt 0:00:00]} 76. Kf6 {[%emt 0:00:00]} Nc3 {[%emt 0:00:00]} 77. Bh5 {[%emt 0:00:00]} Ne4+ {[%emt 0:00:00]} 78. Kg6 {[%emt 0:00:00]} Nf2 {[%emt 0:00:00]} 79. Kf6 {[%emt 0:00:00]} Nh3 {[%emt 0:00:00]} 80. Kg6 {[%emt 0:00:00]} Ng1 {[%emt 0:00:00]} 81. Kf6 {[%emt 0:00:00]} Nf3 {[%emt 0:00:00]} 82. Bxf3 {[%emt 0:00:00]} Kxf3 {[%emt 0:00:00]} 83. Kxg5 {[%emt 0:00:00]} 1/2-1/2

[Event "4NCL Div 1 2018-19"]
[Site "Daventry"]
[Date "2019.01.12"]
[Round "3"]
[White "Walton, Alan J"]
[Black "Skulte, Christopher"]
[Result "1/2-1/2"]
[ECO "D31"]
[WhiteElo "2140"]
[BlackElo "2110"]
[Annotator "NA"]
[PlyCount "32"]
[EventDate "2019.01.12"]
[EventCountry "GBR"]
[SourceTitle "playchess.com"]
[Source "ChessBase"]
[SourceQuality "1"]
[TimeControl "40"]

1. d4 {[%emt 0:00:00]} d5 {[%emt 0:00:00]} 2. c4 {[%emt 0:00:00]} e6 {[%emt 0:00:00]} 3. Nc3 {[%emt 0:00:00]} c6 {[%emt 0:00:00]} 4. e4 {[%emt 0:00:00]} dxe4 {[%emt 0:00:00]} 5. Nxe4 {[%emt 0:00:00]} Nd7 {[%emt 0:00:00]} 6. Nf3 {[%emt 0:00:00]} Ngf6 {[%emt 0:00:00]} 7. Nxf6+ {[%emt 0:00:00]} Qxf6 {[%emt 0:00:00]} 8. Bd3 {[%emt 0:00:00]} Bb4+ {[%emt 0:00:00]} 9. Bd2 {[%emt 0:00:00]} Bxd2+ {[%emt 0:00:00]} 10. Qxd2 {[%emt 0:00:00]} O-O {[%emt 0:00:00]} 11. O-O {[%emt 0:00:00]} e5 {[%emt 0:00:00]} 12. dxe5 {[%emt 0:00:00]} Nxe5 {[%emt 0:00:00]} 13. Nxe5 {[%emt 0:00:00]} Qxe5 {[%emt 0:00:00]} 14. Rfe1 {[%emt 0:00:00]} Qf6 {[%emt 0:00:00]} 15. Re3 {[%emt 0:00:00]} Rd8 {[%emt 0:00:00]} 16. Rae1 {[%emt 0:00:00]} Be6 {[%emt 0:00:00]} 1/2-1/2